bitfinex-derivatives/quotes_BTCF0:USTF0_20250703
["timestamp","ask_amount","ask_price","bid_price","bid_amount"]
[1751552601634,0.01468997,110370.0,110360.0,1.34404968]
[1751552602232,1.64096185,110400.0,110360.0,1.74165416]
[1751552602434,1.66224695,110400.0,110390.0,0.1810959]
[1751552602740,1.70334695,110400.0,110390.0,0.4610959]
[1751552603136,1.56840395,110400.0,110390.0,0.4610959]
[1751552603324,0.26145323,110400.0,110390.0,0.5464959]
[1751552603530,0.22035323,110400.0,110390.0,0.5464959]
[1751552604439,0.03925713,110400.0,110390.0,0.5464959]
[1751552604643,0.22033663,110400.0,110390.0,0.5464959]
[1751552605343,0.03925713,110400.0,110390.0,0.5464959]
[1751552605540,0.22033663,110400.0,110390.0,0.5464959]
[1751552605835,0.22033663,110400.0,110390.0,0.5051959]
[1751552606040,0.65074111,110400.0,110390.0,0.4610959]
[1751552606231,0.30773663,110400.0,110390.0,0.4610959]
[1751552606427,0.12665713,110400.0,110390.0,0.4610959]
[1751552606735,0.22033663,110400.0,110390.0,0.5436959]
[1751552606930,0.26313663,110400.0,110390.0,0.5436959]
[1751552607135,0.30773663,110400.0,110390.0,0.5436959]
[1751552607932,0.26493663,110400.0,110390.0,0.5436959]
[1751552609443,0.24277853,110400.0,110390.0,0.5436959]
[1751552610845,0.19817853,110400.0,110390.0,0.5436959]
[1751552612442,0.19817853,110400.0,110390.0,1.00472526]
[1751552612743,0.06712183,110410.0,110390.0,1.34472526]
[1751552612942,0.02382183,110410.0,110400.0,0.65268398]
[1751552613141,0.20488493,110410.0,110400.0,0.5868795]
[1751552613648,0.02382183,110410.0,110400.0,0.97448398]
[1751552615040,0.02382183,110410.0,110400.0,1.32448398]
[1751552619942,0.04594161,110410.0,110400.0,1.32448398]
[1751552620852,0.02382183,110410.0,110400.0,2.18168398]
[1751552621446,0.02382183,110410.0,110400.0,1.32448398]
[1751552621652,0.02382183,110410.0,110400.0,2.18160398]
[1751552621851,2.02616778,110440.0,110410.0,0.0452622]
[1751552621852,0.002,110440.0,110410.0,0.0452622]
[1751552622051,0.1830139,110440.0,110430.0,0.1810303]
[1751552622249,0.636747,110440.0,110430.0,0.05]
[1751552622451,0.636747,110440.0,110420.0,0.08]
[1751552622452,0.1810303,110430.0,110420.0,0.08]
[1751552622748,0.1810795,110400.0,110390.0,0.07342488]
[1751552622948,0.1810795,110400.0,110380.0,0.40732798]
[1751552622949,0.1810959,110390.0,110380.0,0.40732798]
[1751552623151,0.65620038,110390.0,110380.0,0.45732798]
[1751552623353,0.3131959,110390.0,110380.0,0.45732798]
[1751552623548,0.3131959,110390.0,110380.0,0.4411119]
[1751552623752,0.1811123,110380.0,110370.0,0.2011173]
[1751552623948,0.2686123,110380.0,110370.0,0.5416804]
[1751552624349,0.2666123,110380.0,110370.0,0.6269804]
[1751552624850,0.2666123,110380.0,110370.0,0.5843804]
[1751552625048,0.2666123,110380.0,110370.0,0.5883804]
[1751552625253,0.1804317,110390.0,110380.0,0.1811124]
[1751552625554,0.28652786,110400.0,110390.0,0.1810959]
[1751552625756,0.30879537,110400.0,110390.0,0.4710959]
[1751552625959,0.39299537,110400.0,110390.0,0.4710959]
[1751552626348,0.34772297,110400.0,110390.0,0.4710959]
[1751552626548,0.03715797,110400.0,110390.0,0.85870038]
[1751552626849,0.19596996,110400.0,110390.0,0.5563959]
[1751552627957,0.01489046,110400.0,110390.0,0.5563959]
[1751552628148,0.19596996,110400.0,110390.0,0.5563959]
[1751552628349,0.01489046,110400.0,110390.0,0.5563959]
[1751552628751,0.19596996,110400.0,110390.0,0.5563959]
[1751552628945,0.58357444,110400.0,110390.0,0.5137959]
[1751552629149,0.28086996,110400.0,110390.0,0.5147959]
[1751552629358,0.28086996,110400.0,110390.0,0.51592559]
[1751552629858,0.66847444,110400.0,110390.0,0.51592559]
[1751552630058,0.66847444,110400.0,110390.0,0.47322559]
[1751552630558,0.67047444,110400.0,110390.0,0.47322559]
[1751552630766,0.67047444,110400.0,110390.0,0.47222559]
[1751552631059,0.28286996,110400.0,110390.0,0.47222559]
[1751552631562,0.30520413,110400.0,110390.0,0.47222559]
[1751552632654,0.22030413,110400.0,110390.0,0.47222559]
[1751552632857,0.22030413,110400.0,110390.0,0.55872559]
[1751552633254,0.26180413,110400.0,110390.0,0.55872559]
[1751552633456,0.30430413,110400.0,110390.0,0.55872559]
[1751552634562,0.30430413,110400.0,110390.0,0.55972559]
[1751552635156,0.30230413,110400.0,110390.0,0.55972559]
[1751552635354,0.30230413,110400.0,110390.0,0.56072559]
[1751552636061,0.68990861,110400.0,110390.0,0.47422559]
[1751552636248,0.68990861,110400.0,110390.0,0.01312969]
[1751552636454,1.07751309,110400.0,110390.0,0.01312969]
[1751552636655,0.68990861,110400.0,110390.0,0.01312969]
[1751552636849,1.12107661,110400.0,110390.0,0.01312969]
[1751552637055,0.68990861,110400.0,110390.0,0.19422569]
[1751552637355,1.39794413,110400.0,110390.0,0.27422569]
[1751552637554,1.78554861,110400.0,110390.0,0.27422569]
[1751552638550,0.21830413,110400.0,110390.0,0.46422569]
[1751552638756,0.30240413,110400.0,110390.0,0.27422569]
[1751552639161,0.30240413,110400.0,110390.0,0.49422569]
[1751552639462,0.30240413,110400.0,110390.0,0.27422569]
[1751552639855,0.69000861,110400.0,110390.0,0.27422569]
[1751552640162,0.30240413,110400.0,110390.0,0.45422569]
[1751552640359,0.69000861,110400.0,110390.0,0.26422569]
[1751552640555,0.69000861,110400.0,110390.0,0.18422569]
[1751552640761,0.69000861,110400.0,110390.0,0.26422569]
[1751552641560,0.69000861,110400.0,110390.0,0.08312969]
[1751552643764,1.07761309,110400.0,110390.0,0.08312969]
[1751552643960,1.25878109,110400.0,110390.0,0.08312969]
[1751552644263,0.1811288,110370.0,110360.0,0.3536006]
[1751552644465,0.56873328,110370.0,110360.0,0.5364165]
[1751552644761,0.1811452,110360.0,110350.0,0.13980379]
[1751552644962,0.65464968,110360.0,110350.0,0.56096539]
[1751552645464,0.67726935,110360.0,110350.0,0.56096539]
[1751552645862,0.66726935,110360.0,110350.0,0.56096539]
[1751552646460,0.66826935,110360.0,110350.0,0.56096539]
[1751552646662,0.66926935,110360.0,110350.0,0.56096539]
[1751552647156,1.52582935,110360.0,110350.0,0.56096539]
[1751552647757,1.05224487,110360.0,110350.0,0.56096539]
[1751552648565,1.05221026,110360.0,110350.0,0.56096539]
[1751552648759,1.43881474,110360.0,110350.0,0.47906539]
[1751552648965,1.52581474,110360.0,110350.0,0.46297393]
[1751552649262,1.54066309,110360.0,110350.0,0.46297393]
[1751552649562,1.54166309,110360.0,110350.0,0.46297393]
[1751552650065,1.54266309,110360.0,110350.0,0.46297393]
[1751552651460,1.54266309,110360.0,110350.0,0.28181233]
[1751552651866,1.54266309,110360.0,110350.0,0.46297393]
[1751552654469,1.54266309,110360.0,110350.0,0.28181233]
[1751552655176,1.93026757,110360.0,110350.0,0.28181233]
[1751552655471,1.54266309,110360.0,110350.0,0.28181233]
[1751552656165,1.54266309,110360.0,110350.0,0.00181233]
[1751552656365,0.1811616,110350.0,110340.0,0.01]
[1751552656565,0.69066608,110350.0,110340.0,0.01]
[1751552657174,0.87191409,110350.0,110340.0,0.01]
[1751552657372,0.1812109,110320.0,110310.0,0.28986045]
[1751552657575,0.56881538,110320.0,110310.0,0.66855918]
[1751552657873,0.1812109,110320.0,110310.0,0.66855918]
[1751552658669,0.1812109,110320.0,110310.0,0.67155918]
[1751552660070,0.1812109,110320.0,110310.0,0.67455918]
[1751552660466,0.75218448,110340.0,110330.0,0.1811944]
[1751552660467,0.3606859,110340.0,110330.0,0.1811944]
[1751552660662,1.1732859,110340.0,110330.0,0.5111944]
[1751552660862,1.56089038,110340.0,110330.0,0.5964944]
[1751552661175,1.58339682,110340.0,110330.0,0.60989947]
[1751552661574,1.62519682,110340.0,110330.0,0.60989947]
[1751552662269,1.62519682,110340.0,110330.0,0.01340507]
[1751552662270,1.64034412,110340.0,110330.0,0.01340507]
[1751552662479,1.86310812,110340.0,110330.0,0.01340507]
[1751552663267,0.83481001,110340.0,110330.0,0.34340507]
[1751552663572,1.93005001,110340.0,110330.0,0.52459947]
[1751552663765,1.54244553,110340.0,110330.0,0.61029947]
[1751552663964,1.93005001,110340.0,110330.0,0.61029947]
[1751552664370,1.92088412,110340.0,110330.0,0.61029947]
[1751552664566,1.92973873,110340.0,110330.0,0.61029947]
[1751552665178,1.92973873,110340.0,110330.0,0.61129947]
[1751552665578,1.92973873,110340.0,110330.0,0.43010507]
[1751552665777,1.92973873,110340.0,110330.0,0.34440507]
[1751552666272,1.92973873,110340.0,110330.0,0.01440507]
[1751552666470,1.92973873,110340.0,110330.0,0.02440507]
[1751552666872,1.92973873,110340.0,110330.0,0.31440507]
[1751552667078,1.92973873,110340.0,110330.0,0.02440507]
[1751552667278,1.92973873,110340.0,110330.0,0.29440507]
[1751552667478,1.92973873,110340.0,110330.0,0.47559947]
[1751552667681,1.92973873,110340.0,110330.0,0.29440507]
[1751552668178,1.92973873,110340.0,110330.0,0.47559947]
[1751552668974,1.84607873,110340.0,110330.0,0.51499947]
[1751552669177,1.84607873,110340.0,110330.0,0.55649947]
[1751552669374,0.03765374,110340.0,110330.0,0.5840944]
[1751552669574,0.21883174,110340.0,110330.0,0.5840944]
[1751552669774,0.1963253,110340.0,110330.0,0.5840944]
[1751552670574,0.58392978,110340.0,110330.0,0.5430944]
[1751552670781,0.64947614,110340.0,110330.0,0.55657007]
[1751552670969,0.60647614,110340.0,110330.0,0.55657007]
[1751552671166,0.60647614,110340.0,110330.0,0.02447567]
[1751552671376,0.68997614,110340.0,110330.0,0.30447567]
[1751552671875,0.68997614,110340.0,110330.0,0.01447567]
[1751552672081,0.68997614,110340.0,110330.0,0.25567007]
[1751552672780,0.68997614,110340.0,110330.0,0.52567007]
[1751552673576,0.68997614,110340.0,110330.0,0.34455277]
[1751552673778,0.68997614,110340.0,110330.0,0.52574717]
[1751552674281,0.68997614,110340.0,110330.0,0.34455277]
[1751552674482,0.68997614,110340.0,110330.0,0.02455277]
[1751552674980,0.68997614,110340.0,110330.0,0.46574717]
[1751552675369,0.68997614,110340.0,110330.0,0.28455277]
[1751552675778,0.68997614,110340.0,110330.0,0.46574717]
[1751552676379,0.68997614,110340.0,110330.0,0.28455277]
[1751552676582,0.68997614,110340.0,110330.0,0.46574717]
[1751552676776,0.68997614,110340.0,110330.0,0.02455277]
[1751552676981,0.68997614,110340.0,110320.0,0.009373]
[1751552676982,0.1811944,110330.0,110320.0,0.009373]
[1751552677181,0.1812108,110320.0,110310.0,0.00181299]
[1751552677376,1.30080612,110320.0,110310.0,0.00181299]
[1751552677582,1.48210212,110320.0,110310.0,0.00181299]
[1751552679687,1.48810212,110320.0,110310.0,0.00181299]
[1751552682191,1.77492164,110320.0,110310.0,0.00181299]
[1751552683492,2.16252612,110320.0,110310.0,0.00181299]
[1751552685091,0.59736164,110320.0,110310.0,0.47304029]
[1751552685290,1.06539716,110320.0,110310.0,0.59704029]
[1751552685692,1.45600164,110320.0,110310.0,0.59704029]
[1751552686199,1.06839716,110320.0,110310.0,0.59704029]
[1751552686399,1.06039716,110320.0,110310.0,0.59704029]
[1751552686597,1.06239716,110320.0,110310.0,0.59704029]
[1751552687095,1.45000164,110320.0,110310.0,0.59704029]
[1751552687295,1.42745528,110320.0,110310.0,0.59704029]
[1751552687798,1.45041483,110320.0,110310.0,0.59704029]
[1751552687999,1.42745528,110320.0,110310.0,0.59704029]
[1751552688293,0.003,110320.0,110310.0,0.59704029]
[1751552688499,0.1842109,110320.0,110310.0,0.59704029]
[1751552688699,0.003,110320.0,110310.0,0.59704029]
[1751552689892,0.1842108,110320.0,110310.0,0.59704029]
[1751552690196,0.001,110320.0,110310.0,0.59704029]
[1751552690396,1.58557277,110330.0,110320.0,0.1812108]
[1751552690599,1.60853107,110330.0,110320.0,0.5748108]
[1751552691394,1.29141747,110330.0,110320.0,0.5748108]
[1751552691698,2.32805187,110330.0,110320.0,0.5748108]
[1751552691899,2.32905187,110330.0,110320.0,0.5748108]
[1751552693004,2.33105187,110330.0,110320.0,0.5748108]
[1751552694300,2.71865635,110330.0,110320.0,0.5748108]
[1751552694500,2.71865635,110330.0,110320.0,0.0836]
[1751552694795,2.75925635,110330.0,110320.0,0.5448108]
[1751552694999,0.1812108,110320.0,110310.0,0.14881299]
[1751552695194,0.56881528,110320.0,110310.0,0.38881299]
[1751552695395,0.56881528,110320.0,110310.0,0.36003448]
[1751552695595,0.59179828,110320.0,110310.0,0.36003448]
[1751552696700,0.97940276,110320.0,110310.0,0.02533448]
[1751552696900,1.06130276,110320.0,110310.0,0.02533448]
[1751552697406,0.67369828,110320.0,110310.0,0.33181299]
[1751552697593,0.67369828,110320.0,110310.0,0.34530769]
[1751552697798,0.2860938,110320.0,110310.0,0.34530769]
[1751552698100,0.67369828,110320.0,110310.0,0.34530769]
[1751552698906,0.67369828,110320.0,110310.0,0.01530769]
[1751552699204,0.68269828,110320.0,110310.0,0.01530769]
[1751552699711,1.07030276,110320.0,110310.0,0.01530769]
[1751552700293,1.07030276,110320.0,110310.0,0.31530769]
[1751552700498,1.07030276,110320.0,110310.0,0.01530769]
[1751552700898,1.25159876,110320.0,110310.0,9e-08]
[1751552704605,0.1812273,110310.0,110300.0,0.00181305]
[1751552704807,1.80711478,110310.0,110300.0,0.00181305]
[1751552705400,1.80711478,110310.0,110300.0,5e-08]
[1751552705602,0.1812601,110290.0,110280.0,0.0398]
[1751552705800,1.55977958,110290.0,110280.0,0.02]
[1751552706009,0.1812766,110280.0,110270.0,0.15288092]
[1751552706205,0.66023154,110280.0,110270.0,0.62417392]
[1751552706405,0.1812766,110280.0,110270.0,0.62417392]
[1751552706605,1.0361966,110280.0,110270.0,0.62417392]
[1751552706811,1.42380108,110280.0,110270.0,0.44288092]
[1751552707004,1.0361966,110280.0,110270.0,0.62417392]
[1751552707206,1.42380108,110280.0,110270.0,0.62417392]
[1751552707402,1.42380108,110280.0,110270.0,0.44288092]
[1751552707606,1.42380108,110280.0,110270.0,0.62417392]
[1751552707814,1.49641786,110280.0,110270.0,0.62417392]
[1751552708115,1.49641786,110280.0,110270.0,0.62617392]
[1751552708608,0.64149786,110280.0,110270.0,0.62617392]
[1751552708817,1.10873338,110280.0,110270.0,0.62617392]
[1751552709019,1.49633786,110280.0,110270.0,0.62617392]
[1751552709603,1.88394234,110280.0,110270.0,0.13508092]
[1751552709918,2.00644234,110280.0,110270.0,0.02381365]
[1751552710214,2.00644234,110280.0,110270.0,0.03081365]
[1751552710612,1.61883786,110280.0,110270.0,0.01081365]
[1751552711013,1.62802922,110280.0,110270.0,0.00981365]
[1751552711212,1.62802922,110280.0,110270.0,0.00781365]
[1751552712717,2.0156337,110280.0,110270.0,0.00781365]
[1751552712916,2.0156337,110280.0,110270.0,0.02166761]
[1751552713317,1.62802922,110280.0,110270.0,0.02166761]
[1751552713617,1.86666922,110280.0,110270.0,0.32166761]
[1751552713812,1.86666922,110280.0,110270.0,0.41840292]
[1751552714111,1.86666922,110280.0,110270.0,0.11840292]
[1751552714318,1.86666922,110280.0,110270.0,0.39840292]
[1751552714518,1.86666922,110280.0,110270.0,0.11840292]
[1751552715512,2.2542737,110280.0,110270.0,0.03570292]
[1751552716218,2.27806436,110280.0,110270.0,0.03570292]
[1751552716612,1.89045988,110280.0,110270.0,0.03570292]
[1751552718220,2.27806436,110280.0,110270.0,0.02166761]
[1751552718623,2.27806436,110280.0,110270.0,0.03584027]
[1751552719215,2.27806436,110280.0,110270.0,1e-08]
[1751552719520,0.1813094,110260.0,110250.0,0.18348306]
[1751552719715,1.44731797,110260.0,110250.0,0.49765704]
[1751552719915,1.42359388,110260.0,110250.0,0.57855704]
[1751552720119,1.50292674,110260.0,110250.0,0.01633087]
[1751552720316,1.58692674,110260.0,110250.0,0.01633087]
[1751552720618,2.29182662,110260.0,110230.0,0.05722488]
[1751552720818,0.77520896,110240.0,110200.0,0.04]
[1751552721120,0.56699618,110210.0,110200.0,0.2409]
[1751552721416,1.12612176,110210.0,110200.0,0.2623081]
[1751552721617,0.65965908,110230.0,110210.0,0.0906894]
[1751552721815,0.2720546,110230.0,110220.0,0.3033752]
[1751552722021,1.1266946,110230.0,110220.0,0.3033752]
[1751552722209,1.51429908,110230.0,110220.0,0.6333752]
[1751552722416,0.1813752,110220.0,110210.0,0.28836452]
[1751552722721,0.56897968,110220.0,110210.0,0.57836452]
[1751552723023,0.56897968,110220.0,110210.0,0.48768512]
[1751552723218,0.56897968,110220.0,110210.0,0.27629342]
[1751552723418,0.59256515,110220.0,110210.0,0.02629342]
[1751552723610,0.58398351,110220.0,110210.0,0.01]
[1751552723817,0.1813917,110210.0,110200.0,0.0415]
[1751552724122,1.66227618,110210.0,110200.0,0.0915]
[1751552724314,1.66227618,110210.0,110200.0,0.5630082]
[1751552724513,1.66227618,110210.0,110200.0,0.1416]
[1751552724714,1.2746717,110210.0,110200.0,0.1416]
[1751552724916,1.66227618,110210.0,110200.0,0.3230082]
[1751552725323,1.66227618,110210.0,110200.0,0.1416]
[1751552725807,1.66227618,110210.0,110200.0,0.5630082]
[1751552726515,1.66727618,110210.0,110200.0,0.5630082]
[1751552726715,1.66727618,110210.0,110200.0,0.0816]
[1751552726716,1.66927618,110210.0,110200.0,0.0816]
[1751552727118,0.1814082,110200.0,110190.0,0.04381496]
[1751552727415,0.99981716,110200.0,110190.0,0.00181496]
[1751552727615,1.0994122,110200.0,110190.0,0.00181496]
[1751552728417,1.1004122,110200.0,110190.0,0.00181496]
[1751552729224,0.71280772,110200.0,110190.0,0.00181496]
[1751552729726,0.32520324,110200.0,110190.0,0.00181496]
[1751552729916,1.80584772,110200.0,110190.0,0.06181496]
[1751552730112,1.67784772,110200.0,110190.0,0.32623956]
[1751552730318,1.67784772,110200.0,110190.0,0.18441496]
[1751552730319,1.68084772,110200.0,110190.0,0.18441496]
[1751552731620,1.68084772,110200.0,110190.0,0.19859669]
[1751552731621,2.0684522,110200.0,110190.0,0.19859669]
[1751552731821,2.0684522,110200.0,110190.0,0.07599669]
[1751552732013,2.3759482,110200.0,110190.0,9e-08]
[1751552732218,0.1814246,110190.0,110180.0,0.00256699]
[1751552732526,1.00522908,110190.0,110180.0,0.00256699]
[1751552732826,1.00522908,110190.0,110180.0,0.01669916]
[1751552733727,1.00622908,110190.0,110180.0,0.01669916]
[1751552734721,1.00622908,110190.0,110180.0,0.01674962]
[1751552735226,0.6186246,110190.0,110180.0,0.01674962]
[1751552735623,1.14850908,110190.0,110180.0,0.48819072]
[1751552735821,1.66326908,110190.0,110180.0,0.09784962]
[1751552736020,2.01326908,110190.0,110180.0,0.09784962]
[1751552736228,1.66326908,110190.0,110180.0,0.27929072]
[1751552736425,1.66326908,110190.0,110180.0,0.55929072]
[1751552737629,0.1824246,110190.0,110180.0,0.55929072]
[1751552737825,1.0372646,110190.0,110180.0,0.55929072]
[1751552738030,1.42486908,110190.0,110180.0,0.36929072]
[1751552738221,1.42486908,110190.0,110180.0,0.59928926]
[1751552738625,1.76486908,110190.0,110180.0,0.27928926]
[1751552738823,1.42486908,110190.0,110180.0,0.58928926]
[1751552740426,1.79486908,110190.0,110180.0,0.58928926]
[1751552740730,1.77486908,110190.0,110180.0,0.11784816]
[1751552741130,1.80486908,110190.0,110180.0,0.07674816]
[1751552741428,1.92846908,110190.0,110180.0,0.27298616]
[1751552742324,1.42486908,110190.0,110180.0,0.58518616]
[1751552742627,2.01338908,110190.0,110180.0,0.53662726]
[1751552742825,2.01338908,110190.0,110180.0,0.35518616]
[1751552743746,1.66338908,110190.0,110180.0,0.35518616]
[1751552743919,2.02338908,110190.0,110180.0,0.35518616]
[1751552744124,2.02338908,110190.0,110180.0,0.36936831]
[1751552745125,2.02338908,110190.0,110180.0,0.30936831]
[1751552745630,2.02338908,110190.0,110180.0,0.49080941]
[1751552745833,1.6358246,110190.0,110180.0,0.80080941]
[1751552746228,1.3973046,110190.0,110180.0,0.80080941]
[1751552747220,1.39140509,110190.0,110180.0,0.80080941]
[1751552747421,0.001,110190.0,110180.0,0.80080941]
[1751552747626,0.1824246,110190.0,110180.0,1.18841389]
[1751552747826,0.1824246,110190.0,110180.0,0.80080941]
[1751552748326,0.1824246,110190.0,110180.0,1.18080941]
[1751552748530,0.01479504,110200.0,110190.0,0.1814246]
[1751552748833,0.32126965,110220.0,110210.0,0.1813917]
[1751552749029,0.34480948,110220.0,110210.0,0.48557385]
[1751552749234,0.29072397,110220.0,110210.0,0.62235391]
[1751552749432,0.10934257,110220.0,110210.0,0.62235391]
[1751552749637,0.29071787,110220.0,110210.0,1.00995839]
[1751552749831,0.10934257,110220.0,110210.0,0.62235391]
[1751552750136,0.29071787,110220.0,110210.0,0.62235391]
[1751552750334,0.29071787,110220.0,110210.0,0.8185907]
[1751552750835,0.11134257,110220.0,110210.0,0.8185907]
[1751552751421,0.29271787,110220.0,110210.0,0.8185907]
[1751552752629,0.11134257,110220.0,110210.0,0.8185907]
[1751552752829,0.05408551,110230.0,110220.0,0.1813752]
[1751552753021,0.38838602,110240.0,110230.0,0.1813588]
[1751552753226,0.38838602,110240.0,110230.0,0.6052198]
[1751552753628,0.7759905,110240.0,110230.0,0.5952198]
[1751552753830,0.72190499,110240.0,110230.0,0.5952198]
[1751552754228,0.8160475,110240.0,110230.0,0.5952198]
[1751552754822,0.8140475,110240.0,110230.0,0.5952198]
[1751552755023,0.72490499,110240.0,110230.0,0.58103765]
[1751552755224,0.79807477,110240.0,110230.0,0.77727565]
[1751552755430,0.79807477,110240.0,110230.0,0.7630968]
[1751552756133,0.41047029,110240.0,110230.0,0.7630968]
[1751552756729,0.79807477,110240.0,110230.0,0.7630968]
[1751552756926,1.13807477,110240.0,110230.0,0.196238]
[1751552757127,1.26067477,110240.0,110230.0,0.476238]
[1751552757433,1.73842176,110240.0,110230.0,0.17537118]
[1751552758024,1.73842176,110240.0,110230.0,0.17538444]
[1751552759228,1.73842176,110240.0,110230.0,0.15538444]
[1751552759434,1.73842176,110240.0,110230.0,0.09904574]
[1751552760035,1.73842176,110240.0,110230.0,0.08545268]
[1751552760737,0.1814082,110200.0,110190.0,0.2267734]
[1751552760938,1.73349268,110200.0,110190.0,0.54870023]
[1751552761126,1.42349268,110200.0,110190.0,0.54870023]
[1751552761831,1.42349268,110200.0,110190.0,0.55270023]
[1751552763341,0.70506128,110210.0,110200.0,0.1814081]
[1751552763527,1.81786128,110210.0,110200.0,0.31678373]
[1751552763734,2.06786128,110210.0,110200.0,0.61678373]
[1751552764033,2.07693513,110210.0,110200.0,0.21537563]
[1751552764230,2.07693513,110210.0,110200.0,0.35418373]
[1751552764433,2.16123513,110210.0,110200.0,0.36836342]
[1751552764632,2.16123513,110210.0,110200.0,0.14975995]
[1751552764832,2.183769,110210.0,110200.0,0.11385995]
[1751552765239,2.183769,110210.0,110200.0,0.49150615]
[1751552765833,2.18377098,110210.0,110200.0,0.49150615]
[1751552766237,2.18377098,110210.0,110200.0,0.31009795]
[1751552767837,2.18577098,110210.0,110200.0,0.3061765]
[1751552768032,2.18677098,110210.0,110200.0,0.3041765]
[1751552768228,1.5492065,110210.0,110200.0,0.7355847]
[1751552768536,1.5492065,110210.0,110200.0,0.6282765]
[1751552768537,1.93681098,110210.0,110200.0,0.6282765]
[1751552768840,2.18681098,110210.0,110200.0,0.3682765]
[1751552769945,2.18681098,110210.0,110200.0,0.3082765]
[1751552770236,1.00059713,110210.0,110200.0,0.76961129]
[1751552770430,1.70583265,110210.0,110200.0,0.78961129]
[1751552770635,2.09343713,110210.0,110200.0,0.78961129]
[1751552771236,2.09343713,110210.0,110200.0,0.48961129]
[1751552771635,2.10262441,110210.0,110200.0,0.22410309]
[1751552771835,2.18622441,110210.0,110200.0,0.22410309]
[1751552773343,2.18622441,110210.0,110200.0,0.40551129]
[1751552773543,0.85135265,110210.0,110200.0,0.69551129]
[1751552773841,2.09339713,110210.0,110200.0,0.37620327]
[1751552774043,2.56560161,110210.0,110200.0,0.29410327]
[1751552774236,0.1814246,110190.0,110180.0,0.00256699]
[1751552774539,1.37100761,110190.0,110180.0,0.00256699]
[1751552774738,1.45560761,110190.0,110180.0,0.00256699]
[1751552775036,1.47813265,110190.0,110180.0,0.00256699]
[1751552775237,1.65964255,110190.0,110180.0,0.00256699]
[1751552775438,0.1814576,110170.0,110160.0,0.07183564]
[1751552775637,0.181474,110160.0,110150.0,0.07365126]
[1751552775942,0.66412135,110160.0,110150.0,0.50330612]
[1751552776236,0.40512135,110160.0,110150.0,0.58540612]
[1751552776444,0.421474,110160.0,110150.0,0.79351748]
[1751552776646,0.180474,110160.0,110150.0,0.74814728]
[1751552777437,0.539474,110160.0,110150.0,0.19805362]
[1751552777636,0.660974,110160.0,110150.0,0.19805362]
[1751552778031,0.66989672,110160.0,110150.0,0.19805362]
[1751552779045,0.74282951,110160.0,110150.0,0.19805362]
[1751552781340,0.74282951,110160.0,110150.0,0.37954402]
[1751552781545,0.74282951,110160.0,110150.0,0.19805362]
[1751552783636,0.1814905,110150.0,110140.0,0.07200186]
[1751552783841,1.4375505,110150.0,110140.0,0.07200186]
[1751552784036,2.6927505,110150.0,110140.0,0.07200186]
[1751552784343,2.707527,110150.0,110140.0,0.07200186]
[1751552784546,0.1815234,110130.0,110120.0,0.38848127]
[1751552784846,0.1815234,110130.0,110120.0,0.68223316]
[1751552784847,1.2994569,110130.0,110120.0,0.68223316]
[1751552785147,1.2974569,110130.0,110120.0,0.68223316]
[1751552785344,1.5774569,110130.0,110120.0,0.68223316]
[1751552785550,0.7127769,110130.0,110120.0,0.68223316]
[1751552785752,0.7117769,110130.0,110120.0,0.6152313]
[1751552786142,0.7117769,110130.0,110120.0,0.62942135]
[1751552786547,0.7117769,110130.0,110120.0,0.63242135]
[1751552786848,0.7117769,110130.0,110120.0,0.82865935]
[1751552787048,0.7117769,110130.0,110120.0,0.90059463]
[1751552787251,0.7117769,110130.0,110120.0,0.90060323]
[1751552787653,0.7117769,110130.0,110120.0,0.82866795]
[1751552787843,0.4317769,110130.0,110120.0,0.82866795]
[1751552788047,0.1962969,110130.0,110120.0,0.82866795]
[1751552788250,0.1962969,110130.0,110120.0,0.90059955]
[1751552789856,0.21913447,110130.0,110120.0,0.82866795]
[1751552790049,0.1962969,110130.0,110120.0,0.82866795]
[1751552791646,0.5762969,110130.0,110120.0,0.18480685]
[1751552791847,0.1815399,110120.0,110110.0,0.00656866]
[1751552792045,1.4740599,110120.0,110110.0,0.00656866]
[1751552793056,1.4720599,110120.0,110110.0,0.00656866]
[1751552794358,1.4740599,110120.0,110110.0,0.00656866]
[1751552794559,0.1815729,110100.0,110090.0,0.00305507]
[1751552794755,1.73322633,110100.0,110090.0,0.00305507]
[1751552794955,3.06834633,110100.0,110090.0,0.00305507]
[1751552795164,3.06834633,110100.0,110090.0,0.01724887]
[1751552795656,3.06834633,110100.0,110070.0,0.33277966]
[1751552795657,0.1816058,110080.0,110070.0,0.00181694]
[1751552795863,1.42046717,110080.0,110070.0,0.00181694]
[1751552796068,1.50006717,110080.0,110070.0,0.00181694]
[1751552796860,0.54674717,110080.0,110070.0,0.00181694]
[1751552797167,1.07610717,110080.0,110070.0,0.77357734]
[1751552797368,0.19674717,110080.0,110070.0,0.81257734]
[1751552797560,0.19774717,110080.0,110070.0,0.81257734]
[1751552797760,0.19774717,110080.0,110070.0,0.42107734]
[1751552797974,0.51774717,110080.0,110070.0,0.28055494]
[1751552798473,0.54683679,110080.0,110070.0,0.28055494]
[1751552798873,0.46774717,110080.0,110070.0,0.78317734]
[1751552799068,1.07802717,110080.0,110070.0,0.78317734]
[1751552799269,0.19774717,110080.0,110070.0,0.78317734]
[1751552800378,0.001,110080.0,110070.0,0.78317734]
[1751552800873,0.001,110080.0,110070.0,1.35247782]
[1751552801571,0.2269919,110090.0,110080.0,0.56921038]
[1751552801783,0.35854953,110100.0,110090.0,0.1815894]
[1751552802078,0.35854953,110100.0,110090.0,0.5770894]
[1751552802467,0.71854953,110100.0,110090.0,0.5770894]
[1751552802772,0.35854953,110100.0,110090.0,0.3470894]
[1751552803076,0.35854953,110100.0,110090.0,0.5870894]
[1751552803772,0.36054953,110100.0,110090.0,0.60128288]
[1751552803973,0.36254953,110100.0,110090.0,0.60128288]
[1751552804173,0.36254953,110100.0,110090.0,0.60128283]
[1751552805267,0.36254953,110100.0,110090.0,0.79752083]
[1751552805880,0.72254953,110100.0,110090.0,0.47752083]
[1751552806074,0.72254953,110100.0,110090.0,0.53752083]
[1751552806380,0.74984877,110100.0,110090.0,0.47752083]
[1751552806774,0.74984877,110100.0,110090.0,0.76752083]
[1751552806982,0.38984877,110100.0,110090.0,0.75752083]
[1751552810586,0.44414229,110100.0,110090.0,0.75752083]
[1751552812183,0.35333909,110100.0,110090.0,1.14512531]
[1751552813388,0.17176619,110100.0,110090.0,1.14512531]
[1751552813686,0.35333909,110100.0,110090.0,1.14512531]
[1751552816488,0.34743468,110100.0,110090.0,0.75752083]
[1751552816688,0.69743468,110100.0,110090.0,0.50752083]
[1751552816897,1.55846116,110100.0,110090.0,0.24043143]
[1751552817083,1.67365553,110100.0,110090.0,0.24043143]
[1751552817289,1.70365553,110100.0,110090.0,0.42202083]
[1751552817488,1.70365553,110100.0,110090.0,0.24043143]
[1751552818192,1.63126116,110100.0,110090.0,0.24043143]
[1751552818493,1.63126116,110100.0,110090.0,0.42202083]
[1751552818690,1.32362071,110100.0,110090.0,0.39202083]
[1751552818890,1.66362071,110100.0,110090.0,0.70202083]
[1751552819087,0.78750071,110100.0,110090.0,0.70202083]
[1751552819283,1.90682071,110100.0,110090.0,0.70202083]
[1751552819483,1.90682071,110100.0,110090.0,0.74202083]